fUST/lending_fUST_20250724
["ID","MTS","AMOUNT","RATE_DAILY","PERIOD"]
[374473783,1753314653966,-2307.46,0.00020273,2]
[374473784,1753314653976,-545.87082031,0.00020273,2]
[374473785,1753314653985,-1446.5,0.00020273,2]
[374473786,1753314653995,-460.0,0.00020273,2]
[374473787,1753314654006,-460.0,0.00020273,2]
[374473788,1753314654016,-460.0,0.00020273,2]
[374473789,1753314654026,-1009.01,0.00020273,2]
[374473790,1753314654037,-167.85443079,0.00020273,2]
[374473791,1753314654047,-216.39681154,0.00020273,2]
[374473792,1753314654056,-526.16,0.00020273,2]
[374473793,1753314654066,-460.0,0.00020273,2]
[374473794,1753314654076,-460.0,0.00020273,2]
[374473795,1753314654086,-460.0,0.00020273,2]
[374473796,1753314654095,-486.6,0.00020273,2]
[374473797,1753314654105,-460.0,0.00020273,2]
[374473798,1753314654115,-501.51,0.00020273,2]
[374473799,1753314654126,-460.0,0.00020273,2]
[374473800,1753314654136,-508.53,0.00020273,2]
[374473801,1753314654146,-460.0,0.00020273,2]
[374473802,1753314654155,-2213.65,0.00020273,2]
[374473803,1753314654165,-460.0,0.00020273,2]
[374473804,1753314654174,-460.0,0.00020273,2]
[374473805,1753314654184,-460.0,0.00020273,2]
[374473806,1753314654194,-460.0,0.00020273,2]
[374473807,1753314654204,-460.0,0.00020273,2]
[374473808,1753314654215,-460.0,0.00020273,2]
[374473809,1753314654224,-460.0,0.00020273,2]
[374473810,1753314654234,-460.0,0.00020273,2]
[374473811,1753314654244,-460.0,0.00020273,2]
[374473812,1753314654254,-460.0,0.00020273,2]
[374473813,1753314654265,-625.58,0.00020273,2]
[374473814,1753314654274,-460.0,0.00020273,2]
[374473815,1753314654285,-460.0,0.00020273,2]
[374473816,1753314654295,-809.48,0.00020273,2]
[374473817,1753314654306,-599.49,0.00020273,2]
[374473818,1753314654317,-1310.51,0.00020273,2]
[374473819,1753314654327,-460.0,0.00020273,2]
[374473820,1753314654336,-460.0,0.00020273,2]
[374473821,1753314654346,-460.0,0.00020273,2]
[374473822,1753314654355,-938.09,0.00020273,2]
[374473823,1753314654364,-460.0,0.00020273,2]
[374473824,1753314654373,-151.0,0.000203,3]
[374473825,1753314654382,-3474.7560642,0.00020405,2]
[374473826,1753314654392,-160.0,0.00020442,2]
[374473827,1753314654402,-231.11583447,0.00020442,2]
[374473828,1753314654411,-160.0,0.00020442,2]
[374473829,1753314654421,-12622.36869388,0.00020442,2]
[374473830,1753314654430,-215.84326551,0.00020442,2]
[374473831,1753314654440,-160.0,0.00020442,2]
[374473832,1753314654449,-526.15909479,0.00020442,2]
[374473833,1753314654459,-840.06856235,0.00020442,2]
[374473834,1753314654471,-160.0,0.00020444,2]
[374473835,1753314654482,-160.0,0.00020444,2]
[374473836,1753314654492,-160.0,0.00020444,2]
[374473837,1753314654504,-160.0,0.00020444,2]
[374473838,1753314654514,-214.67886746,0.00020444,2]
[374473839,1753314654524,-160.0,0.00020446,2]
[374473840,1753314654533,-160.0,0.00020446,2]
[374473841,1753314654542,-160.0,0.00020455,2]
[374473842,1753314654553,-151.0,0.000205,4]
[374473843,1753314654563,-151.0,0.000205,3]
[374473844,1753314654572,-4006.19982839,0.0002051,2]
[374473845,1753314654583,-305.50534132,0.00020511,2]
[374473846,1753314654593,-500.0,0.00020511,2]
[374473847,1753314654602,-500.0,0.00020511,2]
[374473848,1753314654611,-500.0,0.00020511,2]
[374473849,1753314654620,-500.0,0.00020511,2]
[374473850,1753314654630,-500.0,0.00020511,2]
[374473851,1753314654640,-619.07791208,0.00020511,2]
[374473852,1753314654649,-158.29538409,0.00020511,2]
[374473853,1753314654659,-500.0,0.00020511,2]
[374473854,1753314654668,-1000.0,0.00020521,2]
[374473855,1753314654677,-1000.0,0.00020521,2]
[374473856,1753314654687,-1465.18,0.00020538,3]
[374473857,1753314654697,-732.6,0.00020538,3]
[374473858,1753314654706,-366.3,0.00020538,3]
[374473859,1753314654716,-563.81,0.00020546,2]
[374473860,1753314654726,-563.81,0.00020546,2]
[374473861,1753314654736,-563.81,0.00020546,2]
[374473862,1753314654747,-563.81,0.00020546,2]
[374473863,1753314654757,-563.81,0.00020546,2]
[374473864,1753314654768,-564.02573757,0.00020546,2]
[374473865,1753314654777,-460.0,0.00020547,2]
[374473866,1753314654789,-1129.88,0.00020547,2]
[374473867,1753314654799,-460.0,0.00020547,2]
[374473868,1753314654810,-460.0,0.00020547,2]
[374473869,1753314654819,-460.0,0.00020547,2]
[374473870,1753314654830,-460.0,0.00020547,2]
[374473871,1753314654839,-460.0,0.00020547,2]
[374473872,1753314654849,-389.74232862,0.00020547,2]
[374473873,1753314654861,-460.0,0.00020547,2]
[374473874,1753314654870,-503.83,0.00020547,2]
[374473875,1753314654880,-460.0,0.00020547,2]
[374473876,1753314654890,-605.56711709,0.00020547,2]
[374473877,1753314654899,-460.0,0.00020547,2]
[374473878,1753314654908,-460.0,0.00020547,2]
[374473879,1753314654922,-460.0,0.00020547,2]
[374473880,1753314654933,-947.65,0.00020547,2]
[374473881,1753314654944,-460.0,0.00020547,2]
[374473882,1753314654954,-460.0,0.00020547,2]
[374473883,1753314654963,-460.0,0.00020547,2]
[374473884,1753314654973,-460.0,0.00020547,2]
[374473885,1753314654985,-460.0,0.00020547,2]
[374473886,1753314654995,-460.0,0.00020547,2]
[374473887,1753314655006,-460.0,0.00020547,2]
[374473888,1753314655016,-460.0,0.00020547,2]
[374473889,1753314655026,-460.0,0.00020547,2]
[374473890,1753314655035,-460.0,0.00020547,2]
[374473891,1753314655045,-475.02,0.00020547,2]
[374473892,1753314655055,-460.0,0.00020547,2]
[374473893,1753314655066,-460.0,0.00020547,2]
[374473894,1753314655075,-460.0,0.00020547,2]
[374473895,1753314655086,-460.0,0.00020547,2]
[374473896,1753314655096,-548.74,0.00020547,2]
[374473897,1753314655105,-460.0,0.00020547,2]
[374473898,1753314655115,-460.0,0.00020547,2]
[374473899,1753314655125,-460.0,0.00020547,2]
[374473900,1753314655134,-460.0,0.00020547,2]
[374473901,1753314655143,-460.0,0.00020547,2]
[374473902,1753314655153,-460.0,0.00020547,2]
[374473903,1753314655162,-460.0,0.00020547,2]
[374473904,1753314655172,-460.0,0.00020547,2]
[374473905,1753314655181,-4973.74,0.00020547,2]
[374473906,1753314655190,-962.86,0.00020547,2]
[374473907,1753314655199,-1293.95,0.00020547,2]
[374473908,1753314655209,-460.0,0.00020547,2]
[374473909,1753314655219,-460.0,0.00020547,2]
[374473910,1753314655228,-460.0,0.00020547,2]
[374473911,1753314655238,-460.0,0.00020547,2]
[374473912,1753314655248,-460.0,0.00020547,2]
[374473913,1753314655257,-460.0,0.00020547,2]
[374473914,1753314655266,-460.0,0.00020547,2]
[374473915,1753314655275,-460.0,0.00020547,2]
[374473916,1753314655284,-460.0,0.00020547,2]
[374473917,1753314655294,-460.0,0.00020547,2]
[374473918,1753314655303,-3048.31,0.00020547,2]
[374473919,1753314655313,-460.0,0.00020547,2]
[374473920,1753314655324,-460.0,0.00020547,2]
[374473921,1753314655335,-460.0,0.00020547,2]
[374473922,1753314655344,-460.0,0.00020547,2]
[374473923,1753314655354,-669.8,0.00020547,2]
[374473924,1753314655363,-401.83634997,0.00020547,2]
[374473925,1753314655372,-583.82,0.00020547,2]
[374473926,1753314655383,-460.0,0.00020547,2]
[374473927,1753314655392,-460.0,0.00020547,2]
[374473928,1753314655402,-460.0,0.00020547,2]
[374473929,1753314655411,-460.0,0.00020547,2]
[374473930,1753314655420,-460.0,0.00020547,2]
[374473931,1753314655429,-1501.36,0.00020547,2]
[374473932,1753314655439,-460.0,0.00020547,2]
[374473933,1753314655448,-497.43689925,0.00020547,2]
[374473934,1753314655458,-460.0,0.00020547,2]
[374473935,1753314655467,-605.72,0.00020547,2]
[374473936,1753314655476,-532.09,0.00020547,2]
[374473937,1753314655486,-460.0,0.00020547,2]
[374473938,1753314655495,-475.12,0.00020547,2]
[374473939,1753314655509,-3025.38,0.00020547,2]
[374473940,1753314655518,-460.0,0.00020547,2]
[374473941,1753314655527,-460.0,0.00020547,2]
[374473942,1753314655537,-1011.1,0.00020547,2]
[374473943,1753314655548,-514.15,0.00020547,2]
[374473944,1753314655557,-460.0,0.00020547,2]
[374473945,1753314655566,-460.0,0.00020547,2]
[374473946,1753314655576,-5531.62,0.00020547,2]
[374473947,1753314655587,-460.0,0.00020547,2]
[374473948,1753314655597,-460.0,0.00020547,2]
[374473949,1753314655607,-460.0,0.00020547,2]
[374473950,1753314655617,-460.0,0.00020547,2]
[374473951,1753314655627,-460.0,0.00020547,2]
[374473952,1753314655637,-460.0,0.00020547,2]
[374473953,1753314655646,-1065.45,0.00020547,2]
[374473954,1753314655656,-460.0,0.00020547,2]
[374473955,1753314655667,-460.0,0.00020547,2]
[374473956,1753314655677,-460.0,0.00020547,2]
[374473957,1753314655687,-2307.46,0.00020547,2]
[374473958,1753314655697,-1446.5,0.00020547,2]
[374473959,1753314655707,-460.0,0.00020547,2]
[374473960,1753314655716,-460.0,0.00020547,2]
[374473961,1753314655726,-460.0,0.00020547,2]
[374473962,1753314655736,-1009.01,0.00020547,2]
[374473963,1753314655745,-414.5,0.00020547,2]
[374473964,1753314655758,-460.0,0.00020547,2]
[374473965,1753314655768,-460.0,0.00020547,2]
[374473966,1753314655777,-486.6,0.00020547,2]
[374473967,1753314655787,-460.0,0.00020547,2]
[374473968,1753314655796,-501.51,0.00020547,2]
[374473969,1753314655806,-460.0,0.00020547,2]
[374473970,1753314655815,-508.53,0.00020547,2]
[374473971,1753314655824,-460.0,0.00020547,2]
[374473972,1753314655834,-2213.65,0.00020547,2]
[374473973,1753314655843,-460.0,0.00020547,2]
[374473974,1753314655852,-460.0,0.00020547,2]
[374473975,1753314655862,-460.0,0.00020547,2]
[374473976,1753314655871,-460.0,0.00020547,2]
[374473977,1753314655880,-460.0,0.00020547,2]
[374473978,1753314655890,-460.0,0.00020547,2]
[374473979,1753314655899,-460.0,0.00020547,2]
[374473980,1753314655909,-460.0,0.00020547,2]
[374473981,1753314655918,-460.0,0.00020547,2]
[374473982,1753314655927,-460.0,0.00020547,2]
[374473983,1753314655937,-625.58,0.00020547,2]
[374473984,1753314655946,-460.0,0.00020547,2]
[374473985,1753314655955,-460.0,0.00020547,2]
[374473986,1753314655965,-809.48,0.00020547,2]
[374473987,1753314656053,-599.49,0.00020547,2]
[374473988,1753314656071,-1310.51,0.00020547,2]
[374473989,1753314656080,-460.0,0.00020547,2]
[374473990,1753314656090,-460.0,0.00020547,2]
[374473991,1753314656099,-460.0,0.00020547,2]
[374473992,1753314656108,-938.09,0.00020547,2]
[374473993,1753314656117,-460.0,0.00020547,2]
[374473994,1753314656135,-1500.0,0.00020568,2]
[374473995,1753314656148,-1005.50054643,0.00020568,2]
[374473996,1753314656157,-1500.0,0.00020568,2]
[374473997,1753314656166,-1500.0,0.00020568,2]
[374473998,1753314656175,-500.88066744,0.00020597,2]
[374473999,1753314656184,-500.0,0.00020597,2]
[374474000,1753314656193,-500.0,0.00020597,2]
[374474001,1753314656202,-500.0,0.00020597,2]
[374474002,1753314656212,-500.0,0.00020597,2]
[374474003,1753314656222,-500.0,0.00020597,2]
[374474004,1753314656232,-500.0,0.00020597,2]
[374474005,1753314656242,-500.0,0.00020597,2]
[374474006,1753314656252,-300.0,0.00020597,2]
[374474007,1753314656262,-500.0,0.00020597,2]
[374474008,1753314656271,-500.0,0.00020597,2]
[374474009,1753314656282,-500.0,0.00020597,2]
[374474010,1753314656291,-504.74859818,0.00020597,2]
[374474011,1753314656300,-161.66149391,0.00020597,2]
[374474012,1753314656310,-500.71124233,0.00020597,2]
[374474013,1753314656320,-500.0,0.00020597,2]
[374474014,1753314656329,-500.0,0.00020597,2]
[374474015,1753314656338,-500.0,0.00020597,2]
[374474016,1753314656348,-500.0,0.00020597,2]
[374474017,1753314656368,-500.0,0.00020597,2]
[374474018,1753314656377,-500.0,0.00020597,2]
[374474019,1753314656386,-578.18285853,0.00020597,2]
[374474020,1753314656396,-3474.7560642,0.00020651,2]
[374474021,1753314656406,-151.0,0.000207,4]
[374474022,1753314656415,-151.0,0.000207,4]
[374474023,1753314656426,-10794.23626693,0.00020739,2]
[374474024,1753314656435,-788.53,0.00020778,2]
[374474025,1753314656445,-178.424,0.00020778,2]
[374474026,1753314656454,-420.0,0.00020791,2]
[374474027,1753314656463,-2000.0,0.00020816,2]
[374474028,1753314656472,-2000.0,0.00020816,2]
[374474029,1753314656482,-1129.88,0.00020821,2]
[374474030,1753314656491,-460.0,0.00020821,2]
[374474031,1753314656504,-460.0,0.00020821,2]
[374474032,1753314656514,-460.0,0.00020821,2]
[374474033,1753314656523,-460.0,0.00020821,2]
[374474034,1753314656532,-460.0,0.00020821,2]
[374474035,1753314656542,-503.83,0.00020821,2]
[374474036,1753314656553,-460.0,0.00020821,2]
[374474037,1753314656562,-460.0,0.00020821,2]
[374474038,1753314656572,-947.65,0.00020821,2]
[374474039,1753314656584,-460.0,0.00020821,2]
[374474040,1753314656594,-460.0,0.00020821,2]
[374474041,1753314656603,-460.0,0.00020821,2]
[374474042,1753314656614,-460.0,0.00020821,2]
[374474043,1753314656624,-460.0,0.00020821,2]
[374474044,1753314656635,-460.0,0.00020821,2]
[374474045,1753314656645,-460.0,0.00020821,2]
[374474046,1753314656655,-460.0,0.00020821,2]
[374474047,1753314656665,-475.02,0.00020821,2]
[374474048,1753314656674,-460.0,0.00020821,2]
[374474049,1753314656685,-460.0,0.00020821,2]
[374474050,1753314656695,-460.0,0.00020821,2]
[374474051,1753314656705,-548.74,0.00020821,2]
[374474052,1753314656715,-460.0,0.00020821,2]
[374474053,1753314656726,-460.0,0.00020821,2]
[374474054,1753314656735,-460.0,0.00020821,2]
[374474055,1753314656745,-460.0,0.00020821,2]
[374474056,1753314656754,-460.0,0.00020821,2]
[374474057,1753314656763,-460.0,0.00020821,2]
[374474058,1753314656773,-460.0,0.00020821,2]
[374474059,1753314656782,-4973.74,0.00020821,2]
[374474060,1753314656794,-962.86,0.00020821,2]
[374474061,1753314656803,-1293.95,0.00020821,2]
[374474062,1753314656812,-460.0,0.00020821,2]
[374474063,1753314656821,-460.0,0.00020821,2]
[374474064,1753314656830,-460.0,0.00020821,2]
[374474065,1753314656839,-460.0,0.00020821,2]
[374474066,1753314656849,-460.0,0.00020821,2]
[374474067,1753314656858,-460.0,0.00020821,2]
[374474068,1753314656868,-350.09,0.00020821,2]
[374474069,1753314656878,-460.0,0.00020821,2]
[374474070,1753314656889,-460.0,0.00020821,2]
[374474071,1753314656899,-460.0,0.00020821,2]
[374474072,1753314656910,-3048.31,0.00020821,2]
[374474073,1753314656924,-460.0,0.00020821,2]
[374474074,1753314656934,-460.0,0.00020821,2]
[374474075,1753314656945,-460.0,0.00020821,2]
[374474076,1753314656956,-465.57713555,0.00020821,2]
[374474077,1753314656968,-669.8,0.00020821,2]
[374474078,1753314656978,-583.82,0.00020821,2]
[374474079,1753314656989,-158.13,0.00020821,2]
[374474080,1753314656999,-460.0,0.00020821,2]
[374474081,1753314657008,-460.0,0.00020821,2]
[374474082,1753314657019,-466.1419611,0.00020821,2]
[374474083,1753314657030,-460.0,0.00020821,2]
[374474084,1753314657039,-460.0,0.00020821,2]
[374474085,1753314657048,-1501.36,0.00020821,2]
[374474086,1753314657057,-460.0,0.00020821,2]
[374474087,1753314657066,-605.72,0.00020821,2]
[374474088,1753314657075,-532.09,0.00020821,2]
[374474089,1753314657085,-460.0,0.00020821,2]
[374474090,1753314657095,-475.12,0.00020821,2]
[374474091,1753314657104,-3025.38,0.00020821,2]
[374474092,1753314657114,-460.0,0.00020821,2]
[374474093,1753314657124,-460.0,0.00020821,2]
[374474094,1753314657138,-1011.1,0.00020821,2]
[374474095,1753314657147,-514.15,0.00020821,2]
[374474096,1753314657156,-460.0,0.00020821,2]
[374474097,1753314657167,-460.0,0.00020821,2]
[374474098,1753314657177,-5531.62,0.00020821,2]
[374474099,1753314657187,-460.0,0.00020821,2]
[374474100,1753314657197,-460.0,0.00020821,2]
[374474101,1753314657206,-460.0,0.00020821,2]
[374474102,1753314657216,-460.0,0.00020821,2]
[374474103,1753314657226,-460.0,0.00020821,2]
[374474104,1753314657235,-460.0,0.00020821,2]
[374474105,1753314657244,-1065.45,0.00020821,2]
[374474106,1753314657253,-460.0,0.00020821,2]
[374474107,1753314657262,-460.0,0.00020821,2]
[374474108,1753314657272,-460.0,0.00020821,2]
[374474109,1753314657282,-2307.46,0.00020821,2]
[374474110,1753314657291,-1446.5,0.00020821,2]
[374474111,1753314657300,-460.0,0.00020821,2]
[374474112,1753314657311,-460.0,0.00020821,2]
[374474113,1753314657320,-460.0,0.00020821,2]
[374474114,1753314657330,-1009.01,0.00020821,2]
[374474115,1753314657340,-460.0,0.00020821,2]
[374474116,1753314657351,-460.0,0.00020821,2]
[374474117,1753314657360,-486.6,0.00020821,2]
[374474118,1753314657370,-460.0,0.00020821,2]
[374474119,1753314657379,-501.51,0.00020821,2]
[374474120,1753314657389,-460.0,0.00020821,2]
[374474121,1753314657398,-508.53,0.00020821,2]
[374474122,1753314657407,-460.0,0.00020821,2]
[374474123,1753314657416,-2213.65,0.00020821,2]
[374474124,1753314657425,-460.0,0.00020821,2]
[374474125,1753314657435,-460.0,0.00020821,2]
[374474126,1753314657445,-460.0,0.00020821,2]
[374474127,1753314657454,-460.0,0.00020821,2]
[374474128,1753314657464,-460.0,0.00020821,2]
[374474129,1753314657473,-460.0,0.00020821,2]
[374474130,1753314657483,-460.0,0.00020821,2]
[374474131,1753314657492,-460.0,0.00020821,2]
[374474132,1753314657504,-460.0,0.00020821,2]
[374474133,1753314657514,-625.58,0.00020821,2]
[374474134,1753314657523,-460.0,0.00020821,2]
[374474135,1753314657532,-809.48,0.00020821,2]
[374474136,1753314657543,-599.49,0.00020821,2]
[374474137,1753314657552,-1310.51,0.00020821,2]
[374474138,1753314657561,-460.0,0.00020821,2]
[374474139,1753314657571,-460.0,0.00020821,2]
[374474140,1753314657581,-460.0,0.00020821,2]
[374474141,1753314657593,-739.733643,0.00020821,2]
[374474142,1753314657603,-938.09,0.00020821,2]
[374474143,1753314657612,-460.0,0.00020821,2]
[374474144,1753314657622,-3474.7560642,0.0002083,2]
[374474145,1753314657631,-676.12839974,0.00020831,2]
[374474146,1753314657640,-330.0,0.00020892,2]
[374474147,1753314657649,-500.0,0.00020894,2]
[374474148,1753314657659,-151.0,0.00021,3]
[374474149,1753314657669,-260.0,0.00021002,2]
[374474150,1753314657678,-1000.0,0.00021059,2]
[374474151,1753314657687,-500.0,0.00021059,2]
[374474152,1753314657696,-1068.91834299,0.00021059,2]
[374474153,1753314657706,-1500.0,0.00021068,2]
[374474154,1753314657715,-1500.0,0.00021068,2]
[374474155,1753314657724,-1129.88,0.00021095,2]
[374474156,1753314657734,-460.0,0.00021095,2]
[374474157,1753314657743,-607.8,0.00021095,2]
[374474158,1753314657752,-310.47202461,0.00021095,2]
[374474159,1753314657762,-503.83,0.00021095,2]
[374474160,1753314657771,-460.0,0.00021095,2]
[374474161,1753314657780,-460.0,0.00021095,2]
[374474162,1753314657789,-947.65,0.00021095,2]
[374474163,1753314657799,-460.0,0.00021095,2]
[374474164,1753314657808,-383.78026525,0.00021095,2]
[374474165,1753314657817,-460.0,0.00021095,2]
[374474166,1753314657827,-460.0,0.00021095,2]
[374474167,1753314657839,-460.0,0.00021095,2]
[374474168,1753314657849,-475.02,0.00021095,2]
[374474169,1753314657858,-460.0,0.00021095,2]
[374474170,1753314657868,-460.0,0.00021095,2]
[374474171,1753314657881,-460.0,0.00021095,2]
[374474172,1753314657892,-548.74,0.00021095,2]
[374474173,1753314657903,-307.55918788,0.00021095,2]
[374474174,1753314657914,-460.0,0.00021095,2]
[374474175,1753314658006,-460.0,0.00021095,2]
[374474176,1753314658016,-460.0,0.00021095,2]
[374474177,1753314658026,-460.0,0.00021095,2]
[374474178,1753314658035,-460.0,0.00021095,2]
[374474179,1753314658044,-4973.74,0.00021095,2]
[374474180,1753314658054,-962.86,0.00021095,2]
[374474181,1753314658063,-1293.95,0.00021095,2]
[374474182,1753314658072,-460.0,0.00021095,2]
[374474183,1753314658082,-460.0,0.00021095,2]
[374474184,1753314658092,-460.0,0.00021095,2]
[374474185,1753314658102,-460.0,0.00021095,2]
[374474186,1753314658111,-460.0,0.00021095,2]
[374474187,1753314658121,-460.0,0.00021095,2]
[374474188,1753314658131,-460.0,0.00021095,2]
[374474189,1753314658141,-460.0,0.00021095,2]
[374474190,1753314658151,-460.0,0.00021095,2]
[374474191,1753314658161,-3048.31,0.00021095,2]
[374474192,1753314658170,-460.0,0.00021095,2]
[374474193,1753314658180,-460.0,0.00021095,2]
[374474194,1753314658189,-460.0,0.00021095,2]
[374474195,1753314658198,-669.8,0.00021095,2]
[374474196,1753314658207,-583.82,0.00021095,2]
[374474197,1753314658217,-460.0,0.00021095,2]
[374474198,1753314658226,-580.75,0.00021095,2]
[374474199,1753314658235,-460.0,0.00021095,2]
[374474200,1753314658247,-460.0,0.00021095,2]
[374474201,1753314658256,-1501.36,0.00021095,2]
[374474202,1753314658266,-460.0,0.00021095,2]
[374474203,1753314658275,-605.72,0.00021095,2]
[374474204,1753314658284,-532.09,0.00021095,2]
[374474205,1753314658293,-460.0,0.00021095,2]
[374474206,1753314658303,-475.12,0.00021095,2]
[374474207,1753314658318,-3025.38,0.00021095,2]
[374474208,1753314658331,-460.0,0.00021095,2]
[374474209,1753314658342,-460.0,0.00021095,2]
[374474210,1753314658352,-1011.1,0.00021095,2]
[374474211,1753314658361,-514.15,0.00021095,2]
[374474212,1753314658371,-460.0,0.00021095,2]
[374474213,1753314658380,-460.0,0.00021095,2]
[374474214,1753314658389,-5531.62,0.00021095,2]
[374474215,1753314658398,-460.0,0.00021095,2]
[374474216,1753314658408,-460.0,0.00021095,2]
[374474217,1753314658417,-460.0,0.00021095,2]
[374474218,1753314658426,-460.0,0.00021095,2]
[374474219,1753314658435,-460.0,0.00021095,2]
[374474220,1753314658445,-460.0,0.00021095,2]
[374474221,1753314658454,-1065.45,0.00021095,2]
[374474222,1753314658464,-460.0,0.00021095,2]
[374474223,1753314658474,-460.0,0.00021095,2]
[374474224,1753314658483,-460.0,0.00021095,2]
[374474225,1753314658493,-2307.46,0.00021095,2]
[374474226,1753314658506,-1446.5,0.00021095,2]
[374474227,1753314658515,-460.0,0.00021095,2]
[374474228,1753314658524,-460.0,0.00021095,2]
[374474229,1753314658533,-460.0,0.00021095,2]
[374474230,1753314658543,-1009.01,0.00021095,2]
[374474231,1753314658552,-460.0,0.00021095,2]
[374474232,1753314658561,-333.64,0.00021095,2]
[374474233,1753314658570,-486.6,0.00021095,2]
[374474234,1753314658581,-460.0,0.00021095,2]
[374474235,1753314658590,-460.0,0.00021095,2]
[374474236,1753314658600,-508.53,0.00021095,2]
[374474237,1753314658609,-460.0,0.00021095,2]
[374474238,1753314658619,-501.51,0.00021095,2]
[374474239,1753314658628,-2213.65,0.00021095,2]
[374474240,1753314658639,-460.0,0.00021095,2]
[374474241,1753314658648,-460.0,0.00021095,2]
[374474242,1753314658658,-460.0,0.00021095,2]
[374474243,1753314658669,-460.0,0.00021095,2]
[374474244,1753314658679,-460.0,0.00021095,2]
[374474245,1753314658688,-460.0,0.00021095,2]
[374474246,1753314658698,-460.0,0.00021095,2]
[374474247,1753314658707,-460.0,0.00021095,2]
[374474248,1753314658719,-460.0,0.00021095,2]
[374474249,1753314658730,-625.58,0.00021095,2]
[374474250,1753314658740,-460.0,0.00021095,2]
[374474251,1753314658749,-809.48,0.00021095,2]
[374474252,1753314658759,-599.49,0.00021095,2]
[374474253,1753314658768,-1310.51,0.00021095,2]
[374474254,1753314658779,-460.0,0.00021095,2]
[374474255,1753314658788,-460.0,0.00021095,2]
[374474256,1753314658800,-565.09345268,0.00021095,2]
[374474257,1753314658810,-938.09,0.00021095,2]
[374474258,1753314658821,-460.0,0.00021095,2]
[374474259,1753314658830,-3474.7560642,0.00021101,2]
[374474260,1753314658841,-2000.0,0.00021116,2]
[374474261,1753314658850,-2000.0,0.00021116,2]
[374474262,1753314658860,-2000.0,0.00021116,2]
[374474263,1753314658870,-500.0,0.00021145,2]
[374474264,1753314658880,-1000.0,0.00021145,2]
[374474265,1753314658890,-1000.0,0.00021145,2]
[374474266,1753314658900,-1000.0,0.00021145,2]
[374474267,1753314658910,-384.09491271,0.00021145,2]
[374474268,1753314658920,-500.0,0.00021145,2]
[374474269,1753314658929,-500.0,0.00021145,2]
[374474270,1753314658938,-500.0,0.00021145,2]
[374474271,1753314658947,-150.0,0.00021147,2]
[374474272,1753314658956,-151.0,0.000212,3]
[374474273,1753314658964,-2500.0,0.00021364,2]
[374474274,1753314658974,-2500.0,0.00021364,2]
[374474275,1753314658983,-1129.88,0.00021369,2]
[374474276,1753314658992,-460.0,0.00021369,2]
[374474277,1753314659000,-503.83,0.00021369,2]
[374474278,1753314659009,-460.0,0.00021369,2]
[374474279,1753314659019,-460.0,0.00021369,2]
[374474280,1753314659027,-947.65,0.00021369,2]
[374474281,1753314659036,-493.89382084,0.00021369,2]
[374474282,1753314659046,-460.0,0.00021369,2]